[Event "FIDE Zonal 2.5-W 2019"]
[Site "Montevideo"]
[Date "2019.04.14"]
[Round "2.1"]
[White "Zuriel, Marisa"]
[Black "Amura, Claudia"]
[Result "1/2-1/2"]
[ECO "B30"]
[WhiteElo "2153"]
[BlackElo "2260"]
[Annotator "NA"]
[PlyCount "34"]
[EventDate "2019.04.13"]
[EventType "swiss"]
[EventCountry "URU"]
[SourceTitle "playchess.com"]
[Source "ChessBase"]
[SourceQuality "1"]
[TimeControl "40/5400+30:1800+30"]

1. e4 {[%emt 0:00:00]} c5 {[%emt 0:00:11]} 2. Nf3 {[%emt 0:00:09]} Nc6 {[%emt 0:00:09]} 3. Nc3 {[%emt 0:00:25]} e5 {[%emt 0:01:39]} 4. Bc4 {[%emt 0:00:25]} Be7 {[%emt 0:00:33]} 5. d3 {[%emt 0:00:49]} Nf6 {[%emt 0:03:10]} 6. Nd2 {[%emt 0:01:35]} Na5 {[%emt 0:12:07]} 7. Nf1 {[%emt 0:01:47]} a6 $14 {[%emt 0:04:33]} 8. a4 {[%emt 0:09:51]} d6 {[%emt 0:00:47]} 9. Ne3 {[%emt 0:02:51]} O-O {[%emt 0:06:14]} 10. O-O Bd7 {[%emt 0:08:10]} 11. Ned5 {[%emt 0:10:29]} Nxd5 {[%emt 0:03:13]} 12. Nxd5 {[%emt 0:07:30]} Bg5 {[%emt 0:03:18]} 13. Bxg5 {[%emt 0:24:23]} Qxg5 {[%emt 0:00:07]} 14. Nb6 {[%emt 0:00:14]} Bg4 {[%emt 0:04:29]} 15. f3 {[%emt 0:02:25]} Bh3 {[%emt 0:00:57]} 16. Rf2 {[%emt 0:07:06]} Rad8 {[%emt 0:01:01]} 17. Bd5 {[%emt 0:00:52]} Be6 {[%emt 0:01:16]} 1/2-1/2

[Event "FIDE Zonal 2.5-W 2019"]
[Site "Montevideo"]
[Date "2019.04.14"]
[Round "2.2"]
[White "Perez Rodriguez, Jennifer"]
[Black "Brizzi, Milagros Tatiana"]
[Result "1/2-1/2"]
[ECO "B13"]
[WhiteElo "2237"]
[BlackElo "2126"]
[Annotator "NA"]
[PlyCount "50"]
[EventDate "2019.04.13"]
[EventType "swiss"]
[EventCountry "URU"]
[SourceTitle "playchess.com"]
[Source "ChessBase"]
[SourceQuality "1"]
[TimeControl "40/5400+30:1800+30"]

1. e4 c6 {[%emt 0:00:00]} 2. d4 {[%emt 0:09:12]} d5 {[%emt 0:00:00]} 3. exd5 {[%emt 0:00:05]} cxd5 {[%emt 0:00:07]} 4. c4 Nf6 {[%emt 0:01:26] LiveBook: 9183 Games} 5. Nc3 {[%emt 0:00:20]} Nc6 {[%emt 0:02:03]} 6. Nf3 {[%emt 0:00:25]} Bg4 {[%emt 0:00:43]} 7. cxd5 {[%emt 0:02:33]} Nxd5 8. Qb3 {[%emt 0:00:04]} Bxf3 {[%emt 0:01:50]} 9. gxf3 {[%emt 0:00:24]} e6 10. Qxb7 Nxd4 {[%emt 0:01:04]} 11. Bb5+ {[%emt 0:01:50]} Nxb5 {[%emt 0:00:15]} 12. Qc6+ {[%emt 0:00:09]} Ke7 {[%emt 0:00:18]} 13. Qxb5 {[%emt 0:00:22]} Qd7 $11 {[%emt 0:00:09]} 14. Nxd5+ Qxd5 {[%emt 0:00:09]} 15. Qxd5 {[%emt 0:03:36]} exd5 {[%emt 0:11:42]} 16. Be3 {[%emt 0:05:40]} Ke6 {[%emt 0:03:30]} 17. Ke2 {[%emt 0:08:08]} Bb4 {[%emt 0:06:23]} 18. Rac1 {[%emt 0:03:33]} Rhc8 {[%emt 0:12:12]} 19. Kd3 {[%emt 0:14:10]} Bd6 20. Rxc8 {[%emt 0:00:06]} Rxc8 {[%emt 0:00:38]} 21. Bxa7 Ra8 {[%emt 0:00:30]} 22. Bd4 {[%emt 0:00:40]} Rxa2 {[%emt 0:00:11]} 23. Bxg7 {[%emt 0:03:01]} f6 {[%emt 0:04:11]} 24. Kc2 {[%emt 0:13:26]} Be5 {[%emt 0:03:24]} 25. Rb1 Bxh2 1/2-1/2

[Event "FIDE Zonal 2.5-W 2019"]
[Site "Montevideo"]
[Date "2019.04.14"]
[Round "2.3"]
[White "Vargas, Gabriela"]
[Black "Fernandez, Maria Florencia"]
[Result "1/2-1/2"]
[ECO "A40"]
[WhiteElo "2130"]
[BlackElo "2227"]
[Annotator "NA"]
[PlyCount "120"]
[EventDate "2019.04.13"]
[EventType "swiss"]
[EventCountry "URU"]
[SourceTitle "playchess.com"]
[Source "ChessBase"]
[SourceQuality "1"]
[TimeControl "40/5400+30:1800+30"]

1. d4 {[%emt 0:08:38]} g6 {[%emt 0:00:00]} 2. Nf3 {[%emt 0:00:23]} Bg7 {[%emt 0:00:12]} 3. Bg5 {[%emt 0:00:58]} Nf6 {[%emt 0:00:22]} 4. Nbd2 {[%emt 0:00:14]} O-O {[%emt 0:00:37]} 5. c3 {[%emt 0:00:06]} d6 {[%emt 0:00:17]} 6. e4 {[%emt 0:00:32]} c5 {[%emt 0:00:21]} 7. dxc5 {[%emt 0:01:37]} dxc5 {[%emt 0:00:22]} 8. Bc4 {[%emt 0:00:54]} Qc7 {[%emt 0:01:00]} 9. O-O {[%emt 0:01:03]} Nc6 {[%emt 0:00:32]} 10. Qe2 {[%emt 0:01:47]} h6 {[%emt 0:00:27]} 11. Bh4 {[%emt 0:00:34]} Nh5 {[%emt 0:00:25]} 12. Qe3 {[%emt 0:01:54]} Na5 $15 {[%emt 0:02:28] LiveBook: 5 Games} 13. Bd3 {[%emt 0:08:05]} Be6 {[%emt 0:03:31]} 14. e5 {[%emt 0:08:52]} Rad8 {[%emt 0:06:49]} 15. Bc2 Nc6 {[%emt 0:27:20]} 16. Qxc5 {[%emt 0:19:09]} g5 {[%emt 0:08:07]} 17. Bg3 {[%emt 0:04:20]} Nxg3 {[%emt 0:00:56]} 18. hxg3 {[%emt 0:00:08]} Bxe5 {[%emt 0:24:12]} 19. Qe3 {[%emt 0:12:27]} Bg7 {[%emt 0:04:55]} 20. Qe4 {[%emt 0:09:24]} Rfe8 {[%emt 0:00:07]} 21. Nb3 {[%emt 0:01:18]} Bd5 {[%emt 0:04:24]} 22. Qh7+ {[%emt 0:00:36]} Kf8 {[%emt 0:00:03]} 23. Be4 {[%emt 0:01:19]} Bxe4 {[%emt 0:03:54]} 24. Qxe4 {[%emt 0:00:05]} Rd6 {[%emt 0:00:28]} 25. Rad1 {[%emt 0:04:45]} Red8 {[%emt 0:00:20]} 26. Rxd6 {[%emt 0:02:45]} Qxd6 {[%emt 0:00:25]} 27. Re1 {[%emt 0:04:29]} e6 {[%emt 0:01:42]} 28. Re2 {[%emt 0:01:59]} Qd1+ {[%emt 0:02:33]} 29. Re1 {[%emt 0:00:08]} Qd5 {[%emt 0:01:00]} 30. Qxd5 {[%emt 0:05:14]} Rxd5 {[%emt 0:00:05]} 31. g4 {[%emt 0:00:28]} b5 {[%emt 0:03:57]} 32. a3 {[%emt 0:01:39]} a5 {[%emt 0:00:59]} 33. Re2 {[%emt 0:01:38]} Rd1+ {[%emt 0:02:19]} 34. Re1 {[%emt 0:00:44]} Rxe1+ {[%emt 0:01:10]} 35. Nxe1 {[%emt 0:00:02]} Ke7 {[%emt 0:00:17]} 36. Kf1 {[%emt 0:00:10]} Kd6 {[%emt 0:00:05]} 37. Ke2 {[%emt 0:00:42]} Kd5 {[%emt 0:00:20]} 38. f3 {[%emt 0:00:20]} f5 {[%emt 0:00:36]} 39. gxf5 {[%emt 0:00:26]} exf5 {[%emt 0:00:04]} 40. Nd3 {[%emt 0:00:27]} Bf8 {[%emt 0:01:11]} 41. Nd2 {[%emt 0:30:54]} Bd6 {[%emt 0:10:12]} 42. Nf1 {[%emt 0:00:00]} h5 {[%emt 0:03:36]} 43. Ne3+ {[%emt 0:00:00]} Ke6 {[%emt 0:00:05]} 44. Nc2 {[%emt 0:00:00]} h4 {[%emt 0:01:30]} 45. Ke3 {[%emt 0:00:00]} g4 {[%emt 0:05:46]} 46. fxg4 {[%emt 0:00:00]} fxg4 {[%emt 0:00:05]} 47. Ke4 {[%emt 0:00:00]} h3 {[%emt 0:04:37]} 48. gxh3 {[%emt 0:00:00]} gxh3 {[%emt 0:00:05]} 49. Kf3 {[%emt 0:00:00]} h2 {[%emt 0:00:35]} 50. Kg2 {[%emt 0:00:00]} Kd5 {[%emt 0:01:44]} 51. b3 {[%emt 0:00:00]} Ne7 {[%emt 0:07:39]} 52. a4 {[%emt 0:00:00]} bxa4 {[%emt 0:00:21]} 53. c4+ {[%emt 0:00:00]} Kc6 {[%emt 0:00:51]} 54. Nd4+ {[%emt 0:00:00]} Kd7 {[%emt 0:00:26]} 55. bxa4 {[%emt 0:00:00]} Ng6 {[%emt 0:00:31]} 56. Nf3 {[%emt 0:00:00]} Nf4+ {[%emt 0:00:24]} 57. Nxf4 {[%emt 0:00:07]} Bxf4 {[%emt 0:00:02]} 58. Nd4 {[%emt 0:00:28]} Bd6 {[%emt 0:01:01]} 59. Nb3 {[%emt 0:00:13]} Bc7 {[%emt 0:00:24]} 60. Nxa5 {[%emt 0:00:14]} Bxa5 {[%emt 0:00:04]} 1/2-1/2

[Event "FIDE Zonal 2.5-W 2019"]
[Site "Montevideo"]
[Date "2019.04.14"]
[Round "2.4"]
[White "Nejanky, Maisa"]
[Black "Sarquis, Maria Belen"]
[Result "0-1"]
[ECO "C45"]
[WhiteElo "2000"]
[BlackElo "2141"]
[Annotator "NA"]
[PlyCount "114"]
[EventDate "2019.04.13"]
[EventType "swiss"]
[EventCountry "URU"]
[SourceTitle "playchess.com"]
[Source "ChessBase"]
[SourceQuality "1"]
[TimeControl "40/5400+30:1800+30"]

1. e4 {[%emt 0:00:00]} e5 {[%emt 0:07:05]} 2. Nf3 {[%emt 0:00:00]} Nc6 {[%emt 0:00:09]} 3. d4 {[%emt 0:00:00]} exd4 {[%emt 0:00:06]} 4. Nxd4 Bc5 {[%emt 0:00:22]} 5. Be3 {[%emt 0:00:09]} Qf6 {[%emt 0:00:12]} 6. c3 Nge7 {[%emt 0:00:17]} 7. Bc4 {[%emt 0:00:18]} Ne5 $11 {[%emt 0:01:33]} 8. Be2 {[%emt 0:00:35] LiveBook: 642 Games} Qg6 {[%emt 0:00:08]} 9. O-O {[%emt 0:04:15]} d6 10. Nd2 Bh3 {[%emt 0:01:34]} 11. Bf3 {[%emt 0:25:26]} Nxf3+ {[%emt 0:02:05]} 12. Qxf3 {[%emt 0:00:08]} Bg4 {[%emt 0:00:07]} 13. Qg3 {[%emt 0:10:05]} O-O {[%emt 0:21:31]} 14. f4 {[%emt 0:02:41]} Bd7 {[%emt 0:22:12]} 15. Qh4 {[%emt 0:10:03]} Rfe8 {[%emt 0:00:29]} 16. f5 {[%emt 0:01:07]} Qf6 {[%emt 0:04:21]} 17. Bg5 {[%emt 0:02:03]} Bxd4+ 18. Kh1 Qe5 {[%emt 0:16:08]} 19. Nf3 {[%emt 0:15:17]} Qa5 {[%emt 0:01:07]} 20. cxd4 {[%emt 0:03:46]} f6 {[%emt 0:00:30]} 21. Bxf6 {[%emt 0:00:30]} gxf6 {[%emt 0:00:30]} 22. Qxf6 {[%emt 0:00:30]} Nxf5 {[%emt 0:00:30]} 23. g4 {[%emt 0:00:30]} Re6 {[%emt 0:00:30]} 24. Qxf5 {[%emt 0:00:30]} Qxf5 {[%emt 0:15:23]} 25. exf5 {[%emt 0:20:23]} Re2 {[%emt 0:00:11]} 26. d5 {[%emt 0:03:43]} Rxb2 {[%emt 0:01:14]} 27. Rab1 {[%emt 0:00:41]} Rxb1 {[%emt 0:01:17]} 28. Rxb1 {[%emt 0:00:02]} Rb8 {[%emt 0:00:46]} 29. Nd4 {[%emt 0:00:36]} Kf7 {[%emt 0:01:03]} 30. g5 {[%emt 0:01:01]} b6 {[%emt 0:01:26]} 31. Kg2 {[%emt 0:00:36]} Re8 {[%emt 0:00:53]} 32. Ne6 {[%emt 0:00:08]} c6 {[%emt 0:00:15]} 33. Rc1 {[%emt 0:00:48]} Rc8 34. Kf3 {[%emt 0:00:34]} cxd5 {[%emt 0:02:07]} 35. Rxc8 {[%emt 0:00:16]} Bxc8 {[%emt 0:00:07]} 36. Nd4 {[%emt 0:00:07]} Ba6 {[%emt 0:00:52]} 37. Kf4 {[%emt 0:00:20]} Bc4 {[%emt 0:00:20]} 38. a3 {[%emt 0:00:11]} b5 {[%emt 0:00:55]} 39. Nc6 {[%emt 0:00:45]} a6 {[%emt 0:00:32]} 40. Ke3 {[%emt 0:00:46]} Bb3 {[%emt 0:00:31]} 41. h4 {[%emt 0:30:31]} Bc2 {[%emt 0:30:09]} 42. Nd4 {[%emt 0:00:17]} Be4 {[%emt 0:00:00]} 43. Kd2 {[%emt 0:00:00]} a5 {[%emt 0:00:00]} 44. f6 {[%emt 0:00:00]} b4 {[%emt 0:00:00]} 45. a4 {[%emt 0:00:00]} h6 {[%emt 0:00:00]} 46. Nb3 {[%emt 0:00:00]} hxg5 {[%emt 0:00:00]} 47. hxg5 {[%emt 0:00:00]} d4 48. Nxd4 {[%emt 0:00:00]} Bd5 {[%emt 0:00:00]} 49. Nf5 {[%emt 0:00:00]} Ke6 {[%emt 0:00:00]} 50. Ng7+ {[%emt 0:04:05]} Ke5 {[%emt 0:00:08]} 51. Kd3 {[%emt 0:00:59]} Bf7 {[%emt 0:00:44]} 52. Ke3 {[%emt 0:00:42]} d5 {[%emt 0:02:06]} 53. Kd2 {[%emt 0:00:24]} Bg6 {[%emt 0:00:22]} 54. Kc1 {[%emt 0:00:29]} d4 {[%emt 0:01:28]} 55. Kd2 {[%emt 0:00:28]} b3 {[%emt 0:01:46]} 56. Kc1 {[%emt 0:00:13]} d3 {[%emt 0:00:43]} 57. f7 {[%emt 0:00:57]} Bxf7 0-1

[Event "FIDE Zonal 2.5-W 2019"]
[Site "Montevideo"]
[Date "2019.04.14"]
[Round "2.5"]
[White "Malan, Lucia"]
[Black "Gomez Barrera, Javiera Belen"]
[Result "0-1"]
[ECO "C92"]
[WhiteElo "1877"]
[BlackElo "2016"]
[Annotator "NA"]
[PlyCount "110"]
[EventDate "2019.04.13"]
[EventType "swiss"]
[EventCountry "URU"]
[SourceTitle "playchess.com"]
[Source "ChessBase"]
[SourceQuality "1"]
[TimeControl "40/5400+30:1800+30"]

1. e4 {[%emt 0:00:00]} e5 {[%emt 0:08:08]} 2. Nf3 {[%emt 0:00:00]} Nc6 {[%emt 0:00:17]} 3. Bb5 {[%emt 0:00:00]} a6 {[%emt 0:00:12]} 4. Ba4 {[%emt 0:00:01]} Nf6 {[%emt 0:00:28]} 5. O-O {[%emt 0:00:28]} Be7 {[%emt 0:01:16]} 6. Re1 {[%emt 0:00:14]} b5 {[%emt 0:00:32]} 7. Bb3 {[%emt 0:00:09]} d6 {[%emt 0:00:13]} 8. c3 {[%emt 0:00:19]} O-O {[%emt 0:00:13]} 9. h3 {[%emt 0:00:12]} Bb7 {[%emt 0:02:19]} 10. d4 {[%emt 0:00:59]} Re8 {[%emt 0:00:49]} 11. Nbd2 {[%emt 0:01:05]} h6 {[%emt 0:01:20]} 12. Nf1 {[%emt 0:01:32]} Bf8 {[%emt 0:00:13]} 13. Ng3 {[%emt 0:00:38]} Na5 {[%emt 0:00:23]} 14. Bc2 {[%emt 0:00:14]} Nc4 {[%emt 0:05:02]} 15. a4 {[%emt 0:00:59]} Nb6 $14 16. b3 {[%emt 0:06:31]} bxa4 {[%emt 0:01:11]} 17. bxa4 {[%emt 0:00:06]} a5 {[%emt 0:00:07]} 18. Bd3 {[%emt 0:00:17]} Qc8 {[%emt 0:34:30]} 19. Ba3 g6 20. dxe5 {[%emt 0:17:13]} dxe5 {[%emt 0:00:52]} 21. Bxf8 {[%emt 0:00:29]} Kxf8 {[%emt 0:01:46]} 22. Bb5 Re6 23. Qc1 {[%emt 0:10:48]} Kg7 {[%emt 0:09:59]} 24. Nd2 Nfd7 {[%emt 0:13:27]} 25. h4 {[%emt 0:11:45]} Ba6 {[%emt 0:04:04]} 26. c4 {[%emt 0:09:06]} Nc5 {[%emt 0:03:52]} 27. Qc3 {[%emt 0:04:42]} Bb7 {[%emt 0:04:51]} 28. Nb3 {[%emt 0:05:42]} Nxb3 {[%emt 0:04:18]} 29. Qxb3 {[%emt 0:00:09]} c6 {[%emt 0:02:49]} 30. c5 {[%emt 0:04:34]} cxb5 {[%emt 0:00:35]} 31. cxb6 {[%emt 0:00:10]} Rxb6 {[%emt 0:00:44]} 32. axb5 {[%emt 0:02:23]} Qc5 {[%emt 0:00:33]} 33. Rab1 {[%emt 0:03:55]} a4 {[%emt 0:00:50]} 34. Qe3 {[%emt 0:02:04]} Qxe3 35. Rxe3 {[%emt 0:00:05]} Bc6 {[%emt 0:01:02]} 36. Rc3 {[%emt 0:04:24]} Rxb5 {[%emt 0:00:30]} 37. Ra1 {[%emt 0:01:09]} Bd7 {[%emt 0:00:30]} 38. Rca3 {[%emt 0:00:25]} Rb4 {[%emt 0:00:29]} 39. f3 {[%emt 0:01:49]} Bb5 {[%emt 0:00:28]} 40. Nf1 {[%emt 0:01:26]} Bxf1 {[%emt 0:00:25]} 41. Kxf1 {[%emt 0:30:06]} f5 {[%emt 0:04:06]} 42. Re3 {[%emt 0:00:00]} fxe4 {[%emt 0:02:33]} 43. Rxe4 {[%emt 0:00:00]} Rxe4 {[%emt 0:00:48]} 44. fxe4 {[%emt 0:00:00]} a3 {[%emt 0:02:50]} 45. Ke2 {[%emt 0:00:00]} a2 {[%emt 0:03:58]} 46. Kd3 {[%emt 0:00:00]} Kf6 {[%emt 0:01:38]} 47. Kc3 {[%emt 0:00:00]} Ra4 {[%emt 0:02:23]} 48. Kd3 {[%emt 0:00:00]} Ke6 {[%emt 0:03:03]} 49. g3 {[%emt 0:00:00]} Kd6 {[%emt 0:02:15]} 50. Kc2 {[%emt 0:00:00]} Rxe4 {[%emt 0:00:34]} 51. Kd3 {[%emt 0:00:00]} Ra4 {[%emt 0:00:14]} 52. Kc3 {[%emt 0:00:00]} Kc5 {[%emt 0:02:29]} 53. Kb3 {[%emt 0:00:00]} Kb5 {[%emt 0:00:20]} 54. Kb2 Kb4 {[%emt 0:01:10]} 55. g4 {[%emt 0:00:00]} e4 {[%emt 0:01:44]} 0-1

[Event "FIDE Zonal 2.5-W 2019"]
[Site "Montevideo"]
[Date "2019.04.14"]
[Round "2.6"]
[White "Meza, Anahi"]
[Black "Silva Rosas, Natalia"]
[Result "1-0"]
[ECO "A81"]
[WhiteElo "2073"]
[BlackElo "1809"]
[Annotator "NA"]
[PlyCount "97"]
[EventDate "2019.04.13"]
[EventType "swiss"]
[EventCountry "URU"]
[SourceTitle "playchess.com"]
[Source "ChessBase"]
[SourceQuality "1"]
[TimeControl "40/5400+30:1800+30"]

1. d4 {[%emt 0:00:00]} f5 {[%emt 0:08:10]} 2. g3 {[%emt 0:00:02]} Nf6 {[%emt 0:00:34]} 3. Bg2 {[%emt 0:00:08]} g6 {[%emt 0:00:18]} 4. Nf3 {[%emt 0:00:17]} Bg7 {[%emt 0:00:16]} 5. c4 {[%emt 0:00:32]} d6 {[%emt 0:00:34]} 6. O-O {[%emt 0:00:10]} O-O {[%emt 0:00:17]} 7. Nc3 {[%emt 0:00:08]} Qe8 {[%emt 0:01:11]} 8. b3 {[%emt 0:00:45]} h6 $14 9. Bb2 {[%emt 0:16:29]} g5 {[%emt 0:08:54]} 10. Qd3 {[%emt 0:02:50]} Na6 {[%emt 0:02:48]} 11. a3 c6 {[%emt 0:06:22]} 12. e4 {[%emt 0:11:46]} f4 {[%emt 0:09:37]} 13. gxf4 {[%emt 0:07:19]} gxf4 {[%emt 0:02:01]} 14. e5 {[%emt 0:00:24]} Ng4 {[%emt 0:06:41]} 15. h3 {[%emt 0:06:42]} Nxe5 {[%emt 0:02:53]} 16. dxe5 {[%emt 0:00:14]} Nc5 {[%emt 0:00:15]} 17. Qe2 {[%emt 0:05:47]} Qh5 {[%emt 0:03:58]} 18. Kh2 {[%emt 0:02:06]} dxe5 19. b4 {[%emt 0:14:04]} Nb3 {[%emt 0:11:53]} 20. Rae1 {[%emt 0:04:22]} Bg4 {[%emt 0:02:24]} 21. Ne4 {[%emt 0:08:05]} Rad8 {[%emt 0:00:32]} 22. Rd1 {[%emt 0:02:55]} Nd4 {[%emt 0:06:14]} 23. Bxd4 {[%emt 0:00:21]} exd4 {[%emt 0:00:33]} 24. c5 {[%emt 0:03:31]} Rd5 {[%emt 0:01:47]} 25. Rd3 {[%emt 0:03:29]} Rfd8 {[%emt 0:03:23]} 26. Re1 {[%emt 0:02:55]} Kh8 {[%emt 0:00:54]} 27. Qd2 {[%emt 0:01:43]} Rf8 {[%emt 0:03:18]} 28. Qb2 {[%emt 0:02:49]} Bf5 {[%emt 0:02:09]} 29. Qe2 {[%emt 0:00:25]} Bg4 {[%emt 0:04:31]} 30. Qf1 {[%emt 0:00:16]} Rg8 {[%emt 0:01:26]} 31. Ned2 {[%emt 0:02:59]} Bf6 {[%emt 0:00:43]} 32. Ne4 {[%emt 0:00:52]} Rd7 {[%emt 0:04:52]} 33. Nxf6 {[%emt 0:01:13]} exf6 {[%emt 0:00:02]} 34. Rxd4 {[%emt 0:00:25]} Rxd4 {[%emt 0:02:22]} 35. Nxd4 {[%emt 0:00:01]} f3 {[%emt 0:00:35]} 36. Bh1 {[%emt 0:00:30]} Qg5 {[%emt 0:01:41]} 37. Re4 {[%emt 0:00:46]} Bf5 {[%emt 0:02:37]} 38. Nxf5 {[%emt 0:00:49]} Qxf5 {[%emt 0:00:11]} 39. Rg4 {[%emt 0:00:19]} Qe5+ {[%emt 0:00:47]} 40. Kg1 {[%emt 0:00:30]} Qf5 {[%emt 0:00:30]} 41. Rxg8+ {[%emt 0:30:42]} Kxg8 {[%emt 0:30:04]} 42. Qc4+ {[%emt 0:00:38]} Kf8 {[%emt 0:00:51]} 43. Qg4 {[%emt 0:00:34]} Qb1+ {[%emt 0:01:43]} 44. Kh2 {[%emt 0:00:07]} Qd3 {[%emt 0:00:24]} 45. Qxf3 {[%emt 0:00:20]} Qxf3 {[%emt 0:00:34]} 46. Bxf3 {[%emt 0:00:02]} f5 {[%emt 0:00:07]} 47. Kg3 {[%emt 0:00:20]} Kf7 {[%emt 0:00:05]} 48. Kf4 {[%emt 0:00:34]} Ke6 {[%emt 0:00:07]} 49. h4 {[%emt 0:00:49] Kd5 Ke4+} 1-0

[Event "FIDE Zonal 2.5-W 2019"]
[Site "Montevideo"]
[Date "2019.04.14"]
[Round "2.7"]
[White "Podesta, Sofia"]
[Black "Reyes Jara, Paula"]
[Result "0-1"]
[ECO "A48"]
[WhiteElo "1417"]
[BlackElo "1926"]
[Annotator "NA"]
[PlyCount "78"]
[EventDate "2019.04.13"]
[EventType "swiss"]
[EventCountry "URU"]
[SourceTitle "playchess.com"]
[Source "ChessBase"]
[SourceQuality "1"]
[TimeControl "40/5400+30:1800+30"]

1. Nf3 Nf6 {[%emt 0:00:43]} 2. d4 {[%emt 0:08:10]} g6 {[%emt 0:00:10]} 3. Bg5 {[%emt 0:00:15]} Bg7 {[%emt 0:01:46]} 4. e3 {[%emt 0:02:04]} O-O {[%emt 0:07:30]} 5. Be2 {[%emt 0:00:43]} c5 {[%emt 0:00:29]} 6. O-O {[%emt 0:01:05]} cxd4 {[%emt 0:01:23]} 7. exd4 {[%emt 0:03:40]} d5 {[%emt 0:00:49]} 8. Nbd2 {[%emt 0:00:16]} Nc6 {[%emt 0:05:19]} 9. c3 {[%emt 0:01:07]} a6 10. Ne5 {[%emt 0:00:06]} Nxe5 {[%emt 0:01:28]} 11. dxe5 {[%emt 0:02:07]} Nd7 {[%emt 0:04:14]} 12. f4 {[%emt 0:06:05]} f6 {[%emt 0:07:14]} 13. Nf3 {[%emt 0:00:37]} Nc5 {[%emt 0:03:05]} 14. exf6 {[%emt 0:01:53]} Bxf6 {[%emt 0:00:18]} 15. Bxf6 {[%emt 0:00:30]} Rxf6 {[%emt 0:00:30]} 16. c4 {[%emt 0:13:38]} Rxf4 {[%emt 0:13:37]} 17. Qxd5+ {[%emt 0:00:06]} Qxd5 {[%emt 0:02:21]} 18. cxd5 {[%emt 0:03:03]} Bf5 {[%emt 0:04:16]} 19. Ng5 {[%emt 0:01:27]} Rb4 {[%emt 0:00:30]} 20. b3 {[%emt 0:00:30]} h6 {[%emt 0:00:30]} 21. Nf3 {[%emt 0:05:59]} Rd8 {[%emt 0:10:58]} 22. Rad1 {[%emt 0:00:30]} Ne4 {[%emt 0:00:30]} 23. Bc4 {[%emt 0:00:30]} Nd6 {[%emt 0:00:30]} 24. Bd3 {[%emt 0:02:24]} Bxd3 {[%emt 0:09:09]} 25. Rxd3 {[%emt 0:00:10]} Re4 {[%emt 0:00:27]} 26. Re1 {[%emt 0:02:38]} Rxe1+ {[%emt 0:02:54]} 27. Nxe1 {[%emt 0:00:09]} Nb5 {[%emt 0:01:01]} 28. Nc2 {[%emt 0:00:35]} Rc8 {[%emt 0:02:21]} 29. Rd2 {[%emt 0:01:28]} Nc3 {[%emt 0:03:02]} 30. Ne3 {[%emt 0:01:59]} Ne4 {[%emt 0:00:47]} 31. Rd1 {[%emt 0:02:54]} Rc3 {[%emt 0:01:23]} 32. Nc4 {[%emt 0:02:51]} Nf6 {[%emt 0:01:20]} 33. d6 {[%emt 0:00:46]} exd6 {[%emt 0:03:11]} 34. Rxd6 {[%emt 0:04:46]} Rc1+ {[%emt 0:00:11]} 35. Kf2 {[%emt 0:00:18]} Ne4+ {[%emt 0:00:06]} 36. Kf3 {[%emt 0:00:20]} Nxd6 {[%emt 0:00:12]} 37. Nxd6 {[%emt 0:00:06]} b5 {[%emt 0:00:59]} 38. Ne4 {[%emt 0:04:19]} Rc2 {[%emt 0:01:16]} 39. a3 {[%emt 0:00:33]} Ra2 {[%emt 0:01:05]} 0-1

[Event "FIDE Zonal 2.5-W 2019"]
[Site "Montevideo"]
[Date "2019.04.14"]
[Round "3.5"]
[White "Reyes Jara, Paula"]
[Black "Meza, Anahi"]
[Result "0-1"]
[ECO "B43"]
[WhiteElo "1926"]
[BlackElo "2073"]
[Annotator "NA RC"]
[PlyCount "50"]
[EventDate "2019.04.13"]
[EventType "swiss"]
[EventCountry "URU"]
[SourceTitle "playchess.com"]
[Source "ChessBase"]
[SourceQuality "1"]
[TimeControl "40/5400+30:1800+30"]

{[%evp 17,49,-14,1,-12,32767,-18,-41,32767,-18,-100,-31,32767,32767,-62,32767,-350,32767,32767,32767,32767,32767,32767,-831,32767,-1102,-2376,32767,-1654,-1941,-1598,-1732,-1798,-427,-937]} 1. e4 {[%emt 0:02:19]} c5 {[%emt 0:00:00]} 2. Nf3 {[%emt 0:00:40]} e6 {[%emt 0:00:00]} 3. d4 {[%emt 0:01:24]} cxd4 {[%emt 0:00:09]} 4. Nxd4 {[%emt 0:00:09]} a6 {[%emt 0:00:00]} 5. Nc3 {[%emt 0:00:44]} b5 6. a3 {[%emt 0:01:44]} Qc7 {[%emt 0:03:03]} 7. Be2 {[%emt 0:01:26]} Bb7 {[%emt 0:00:30] B43: Sicilian: Kan Variation: 5 Nc3} 8. Bf3 (8. f4 d6 9. Bf3 Nf6 10. g4 e5 11. Nf5 Nfd7 12. O-O Nb6 13. fxe5 dxe5 14. Kh1 N8d7 15. Nd5 Nxd5 16. exd5 {1-0 (48) Kryakvin,D (2603)-Bocharov,D (2618) Irkutsk 2010}) 8... Nc6 {[%emt 0:07:00]} 9. Nxc6 {[%emt 0:02:50]} Bxc6 {[%emt 0:04:48]} 10. O-O {[%emt 0:00:45]} Bd6 {[%emt 0:01:02]} 11. h3 {[%emt 0:04:58]} Ne7 {[%emt 0:17:58]} 12. Ne2 $146 {[%emt 0:05:23]} ({Predecessor:} 12. Re1 O-O 13. Qe2 Ng6 14. g3 a5 15. Bg2 b4 16. axb4 axb4 17. Rxa8 Rxa8 {0-1 (27) Eriksson,M (2010)-Mortensen,E (2450) Copenhagen 2002}) 12... Ng6 {[%emt 0:22:12]} 13. g3 {[%emt 0:01:39]} (13. Nd4 $11 {remains equal.}) 13... h5 14. Nd4 {[%emt 0:04:58]} Bb7 {[%emt 0:02:58]} 15. Bxh5 {[%emt 0:01:47]} Bxg3 {[%emt 0:07:58]} 16. Qg4 $2 {[%emt 0:02:24]} (16. Bxg6 $17 {only move.} Be5 17. f4 Bxd4+ 18. Qxd4) 16... Bh2+ {[%emt 0:03:00]} 17. Kh1 {[%emt 0:05:49]} Ne5 18. Qe2 g6 {[%emt 0:03:08]} 19. Bg4 {[%emt 0:03:10]} f5 {[%emt 0:06:30]} 20. f4 {[%emt 0:03:47]} Nxg4 {[%emt 0:05:41]} 21. hxg4 {[%emt 0:01:49]} Bxe4+ {[%emt 0:00:42]} 22. Nf3 {[%emt 0:00:36]} Bxf4+ {[%emt 0:01:15]} 23. Kg1 {[%emt 0:00:06]} Bxc1 {[%emt 0:01:07]} 24. Raxc1 {[%emt 0:01:10]} Qg3+ $19 {[%emt 0:00:35]} (24... fxg4 $142 25. Rce1 gxf3 26. Rxf3 Bxf3 27. Qxf3 Qh2+ 28. Kf1 Rf8 29. Qxf8+ Kxf8) 25. Qg2 {[%emt 0:01:53]} Qxg2+ {[%emt 0:00:10]} 0-1